[Event "Early-Titled-Tuesday-Blitz-November-28-2023"]
[Site "Chess.com"]
[Date "2023.11.28"]
[Round "3"]
[White "psychokiller48"]
[Black "shimastream"]
[Result "0-1"]
[WhiteElo "2710"]
[BlackElo "2949"]
[TimeControl "180+1"]
[EndTime "8:27:25 PST"]
[Termination "shimastream won by checkmate"]

1. Nf3 {[%clk 0:02:55.9]} 1... d5 {[%clk 0:02:57.3]} 2. c4 {[%clk 0:02:53.5]}
2... c6 {[%clk 0:02:51.8]} 3. b3 {[%clk 0:02:50.3]} 3... Nf6 {[%clk 0:02:51.3]}
4. Bb2 {[%clk 0:02:50]} 4... Bg4 {[%clk 0:02:44.2]} 5. Ne5 {[%clk 0:02:47.5]}
5... Bf5 {[%clk 0:02:43.6]} 6. g3 {[%clk 0:02:16.5]} 6... Nbd7 {[%clk
0:02:42.2]} 7. Bg2 {[%clk 0:02:15.5]} 7... e6 {[%clk 0:02:40.8]} 8. O-O {[%clk
0:02:13.9]} 8... Bd6 {[%clk 0:02:40.5]} 9. d4 {[%clk 0:02:14.5]} 9... O-O {[%clk
0:02:39.3]} 10. Nd2 {[%clk 0:02:14.3]} 10... Qe7 {[%clk 0:02:38.2]} 11. a3
{[%clk 0:02:07.7]} 11... a5 {[%clk 0:02:37.3]} 12. e3 {[%clk 0:02:05.3]} 12...
h6 {[%clk 0:02:35]} 13. Qe2 {[%clk 0:02:04.8]} 13... Bxe5 {[%clk 0:02:17.7]} 14.
dxe5 {[%clk 0:02:03.8]} 14... Ne4 {[%clk 0:02:18.6]} 15. Nxe4 {[%clk 0:01:40]}
15... dxe4 {[%clk 0:02:19.5]} 16. Bc3 {[%clk 0:01:13.5]} 16... Nc5 {[%clk
0:02:16]} 17. b4 {[%clk 0:01:13.7]} 17... Nd3 {[%clk 0:02:13.7]} 18. c5 {[%clk
0:01:13.3]} 18... axb4 {[%clk 0:02:07.4]} 19. axb4 {[%clk 0:01:12.9]} 19... Qc7
{[%clk 0:02:03.7]} 20. Qc2 {[%clk 0:00:53.6]} 20... Rfd8 {[%clk 0:01:53.9]} 21.
Rfb1 {[%clk 0:00:48.2]} 21... h5 {[%clk 0:01:49.9]} 22. Bd4 {[%clk 0:00:38.7]}
22... h4 {[%clk 0:01:45.2]} 23. g4 {[%clk 0:00:31.9]} 23... Bxg4 {[%clk
0:01:38.3]} 24. Bxe4 {[%clk 0:00:24.3]} 24... Nxe5 {[%clk 0:01:38.3]} 25. Qc3
{[%clk 0:00:19.8]} 25... Nf3+ {[%clk 0:01:21.3]} 26. Bxf3 {[%clk 0:00:19.3]}
26... Bxf3 {[%clk 0:01:22.2]} 27. Bxg7 {[%clk 0:00:20]} 27... f5 {[%clk
0:01:22.9]} 28. Be5 {[%clk 0:00:19.5]} 28... Qf7 {[%clk 0:01:23.5]} 29. Kf1
{[%clk 0:00:19.1]} 29... Qg6 {[%clk 0:01:23.1]} 30. Rxa8 {[%clk 0:00:16.5]}
30... Qg2+ {[%clk 0:01:22]} 31. Ke1 {[%clk 0:00:17.2]} 31... Qg1# {[%clk
0:01:22.9]} 0-1

[Event "Early-Titled-Tuesday-Blitz-November-28-2023"]
[Site "Chess.com"]
[Date "2023.11.28"]
[Round "3"]
[White "PattyCastillo"]
[Black "ChessWarrior3"]
[Result "0-1"]
[WhiteElo "2018"]
[BlackElo "2436"]
[TimeControl "180+1"]
[EndTime "8:27:26 PST"]
[Termination "ChessWarrior3 won by resignation"]

1. d4 {[%clk 0:02:59.8]} 1... d5 {[%clk 0:02:57.7]} 2. Nf3 {[%clk 0:02:57.9]}
2... Nf6 {[%clk 0:02:56.9]} 3. e3 {[%clk 0:02:58]} 3... e6 {[%clk 0:02:54.3]} 4.
Bd3 {[%clk 0:02:57.8]} 4... c5 {[%clk 0:02:54.6]} 5. b3 {[%clk 0:02:57.9]} 5...
a6 {[%clk 0:02:52.7]} 6. Bb2 {[%clk 0:02:58]} 6... b5 {[%clk 0:02:52.2]} 7. c4
{[%clk 0:02:57.4]} 7... dxc4 {[%clk 0:02:49.6]} 8. bxc4 {[%clk 0:02:57.4]} 8...
cxd4 {[%clk 0:02:49.5]} 9. exd4 {[%clk 0:02:57.3]} 9... bxc4 {[%clk 0:02:48.5]}
10. Bxc4 {[%clk 0:02:58.2]} 10... Be7 {[%clk 0:02:41.9]} 11. O-O {[%clk
0:02:57.8]} 11... O-O {[%clk 0:02:41.9]} 12. Nc3 {[%clk 0:02:53.8]} 12... Bb7
{[%clk 0:02:39.7]} 13. Rb1 {[%clk 0:02:50.7]} 13... Qd6 {[%clk 0:02:37.7]} 14.
Na4 {[%clk 0:02:35.3]} 14... Nbd7 {[%clk 0:02:34.8]} 15. Nc5 {[%clk 0:02:29.9]}
15... Nxc5 {[%clk 0:02:34.1]} 16. dxc5 {[%clk 0:02:30]} 16... Qxc5 {[%clk
0:02:34.8]} 17. Bd3 {[%clk 0:02:19.7]} 17... Qc6 {[%clk 0:02:34.1]} 18. Rc1
{[%clk 0:02:15.4]} 18... Qd5 {[%clk 0:02:31.7]} 19. Qe2 {[%clk 0:02:06]} 19...
Ng4 {[%clk 0:02:29]} 20. Rfd1 {[%clk 0:02:00.6]} 20... Qh5 {[%clk 0:02:23.1]}
21. h3 {[%clk 0:01:58.3]} 21... Nf6 {[%clk 0:02:19.5]} 22. Ne5 {[%clk
0:01:46.3]} 22... Qxe2 {[%clk 0:02:15.4]} 23. Bxe2 {[%clk 0:01:47.2]} 23... Nd5
{[%clk 0:02:15.8]} 24. Bf3 {[%clk 0:01:43.7]} 24... Rac8 {[%clk 0:02:12.7]} 25.
Nd7 {[%clk 0:01:40]} 25... Rfd8 {[%clk 0:02:11.3]} 26. Bxd5 {[%clk 0:01:33.7]}
26... Rxc1 {[%clk 0:02:09.2]} 27. Rxc1 {[%clk 0:01:25.8]} 27... Bxd5 {[%clk
0:02:09.6]} 28. Nb6 {[%clk 0:01:19.1]} 28... Bxa2 {[%clk 0:02:06.2]} 29. Be5
{[%clk 0:01:09.4]} 29... f6 {[%clk 0:01:59.3]} 30. Bg3 {[%clk 0:01:07.3]} 30...
e5 {[%clk 0:01:55.3]} 31. Rc7 {[%clk 0:01:02.1]} 31... Bb4 {[%clk 0:01:50.8]}
32. Nc4 {[%clk 0:00:51.5]} 32... Rd1+ {[%clk 0:01:48.8]} 33. Kh2 {[%clk
0:00:51.7]} 33... Rc1 {[%clk 0:01:49.7]} 34. Rc8+ {[%clk 0:00:46.7]} 34... Bf8
{[%clk 0:01:46.3]} 35. Nd6 {[%clk 0:00:40.9]} 35... Rxc8 {[%clk 0:01:45.3]} 36.
Nxc8 {[%clk 0:00:41.2]} 36... Bc5 {[%clk 0:01:46.2]} 37. f4 {[%clk 0:00:38.8]}
37... Be6 {[%clk 0:01:45.7]} 38. fxe5 {[%clk 0:00:35.9]} 38... Bxc8 {[%clk
0:01:46]} 39. exf6 {[%clk 0:00:35.8]} 39... gxf6 {[%clk 0:01:46.9]} 40. Bc7
{[%clk 0:00:35.2]} 40... Kf7 {[%clk 0:01:47.4]} 41. Kg3 {[%clk 0:00:35.5]} 41...
Ke6 {[%clk 0:01:48]} 42. Kf4 {[%clk 0:00:34.9]} 42... Bd6+ {[%clk 0:01:48.4]}
43. Bxd6 {[%clk 0:00:34.9]} 43... Kxd6 {[%clk 0:01:49.3]} 44. Ke3 {[%clk
0:00:35.4]} 44... a5 {[%clk 0:01:50.2]} 45. Kd4 {[%clk 0:00:35.9]} 45... a4
{[%clk 0:01:49.5]} 46. Kc4 {[%clk 0:00:35.9]} 46... Ke5 {[%clk 0:01:50]} 47. Kb4
{[%clk 0:00:36.2]} 47... Kf4 {[%clk 0:01:50.9]} 48. Kxa4 {[%clk 0:00:36.3]}
48... Kg3 {[%clk 0:01:51.8]} 0-1

[Event "Early-Titled-Tuesday-Blitz-November-28-2023"]
[Site "Chess.com"]
[Date "2023.11.28"]
[Round "3"]
[White "LiemLe"]
[Black "KVAIDAN"]
[Result "1-0"]
[WhiteElo "3126"]
[BlackElo "2355"]
[TimeControl "180+1"]
[EndTime "8:27:28 PST"]
[Termination "LiemLe won by checkmate"]

1. Nf3 {[%clk 0:03:00.9]} 1... d6 {[%clk 0:02:48.8]} 2. d4 {[%clk 0:02:59.6]}
2... c6 {[%clk 0:02:49.2]} 3. e4 {[%clk 0:02:59.2]} 3... Nd7 {[%clk 0:02:49.8]}
4. Bc4 {[%clk 0:02:58.3]} 4... h6 {[%clk 0:02:49.1]} 5. O-O {[%clk 0:02:52.9]}
5... g5 {[%clk 0:02:48.7]} 6. e5 {[%clk 0:02:27.9]} 6... d5 {[%clk 0:02:44.4]}
7. Bd3 {[%clk 0:02:22.8]} 7... e6 {[%clk 0:02:43.9]} 8. Ne1 {[%clk 0:02:19.2]}
8... c5 {[%clk 0:02:30.1]} 9. c3 {[%clk 0:02:19.1]} 9... Qb6 {[%clk 0:02:29.3]}
10. Nc2 {[%clk 0:02:18.4]} 10... Ne7 {[%clk 0:02:12.8]} 11. a4 {[%clk
0:02:15.2]} 11... Nc6 {[%clk 0:02:02]} 12. Kh1 {[%clk 0:02:05.9]} 12... cxd4
{[%clk 0:01:58.5]} 13. cxd4 {[%clk 0:02:06.8]} 13... Nb4 {[%clk 0:01:44.2]} 14.
a5 {[%clk 0:02:00.1]} 14... Qc7 {[%clk 0:01:36.4]} 15. Nxb4 {[%clk 0:01:48.5]}
15... Bxb4 {[%clk 0:01:35.7]} 16. f4 {[%clk 0:01:49]} 16... Nf8 {[%clk
0:00:55.2]} 17. Qh5 {[%clk 0:01:44.6]} 17... gxf4 {[%clk 0:00:48.7]} 18. Bxf4
{[%clk 0:01:45.5]} 18... Qe7 {[%clk 0:00:27]} 19. Bg3 {[%clk 0:01:34.6]} 19...
Qg5 {[%clk 0:00:13.9]} 20. Qxf7+ {[%clk 0:01:34.1]} 20... Kd8 {[%clk 0:00:13.5]}
21. Na3 {[%clk 0:01:24.7]} 21... Bd7 {[%clk 0:00:12.2]} 22. Nb5 {[%clk 0:01:21]}
22... a6 {[%clk 0:00:12.5]} 23. Nd6 {[%clk 0:01:20.5]} 23... Bxd6 {[%clk
0:00:12.6]} 24. exd6 {[%clk 0:01:21.4]} 24... Rc8 {[%clk 0:00:11.7]} 25. Be5
{[%clk 0:01:16.7]} 25... Qg6 {[%clk 0:00:06]} 26. Qe7# {[%clk 0:01:16.5]} 1-0

[Event "Early-Titled-Tuesday-Blitz-November-28-2023"]
[Site "Chess.com"]
[Date "2023.11.28"]
[Round "3"]
[White "Casper"]
[Black "Sofia_Blokhin"]
[Result "1-0"]
[WhiteElo "2420"]
[BlackElo "2245"]
[TimeControl "180+1"]
[EndTime "8:27:32 PST"]
[Termination "Casper won on time"]

1. d4 {[%clk 0:03:00.1]} 1... f5 {[%clk 0:02:56.8]} 2. Nh3 {[%clk 0:02:57.7]}
2... Nf6 {[%clk 0:02:55.4]} 3. Nf4 {[%clk 0:02:56.5]} 3... g6 {[%clk 0:02:54.5]}
4. h4 {[%clk 0:02:56.1]} 4... d6 {[%clk 0:02:21.9]} 5. Nc3 {[%clk 0:02:52.7]}
5... Nc6 {[%clk 0:02:16]} 6. e4 {[%clk 0:02:27.6]} 6... fxe4 {[%clk 0:02:11.5]}
7. Bc4 {[%clk 0:02:27.4]} 7... e5 {[%clk 0:01:54.7]} 8. dxe5 {[%clk 0:02:25.5]}
8... Nxe5 {[%clk 0:01:51.5]} 9. Qe2 {[%clk 0:02:13.2]} 9... Bf5 {[%clk
0:01:16.2]} 10. h5 {[%clk 0:01:55.9]} 10... g5 {[%clk 0:01:07.3]} 11. Ne6 {[%clk
0:01:55.6]} 11... Bxe6 {[%clk 0:00:44.4]} 12. Bxe6 {[%clk 0:01:56.5]} 12... Qe7
{[%clk 0:00:42.1]} 13. Bf5 {[%clk 0:01:56.8]} 13... d5 {[%clk 0:00:31.1]} 14.
Bxg5 {[%clk 0:01:56.2]} 14... c6 {[%clk 0:00:30.6]} 15. O-O-O {[%clk 0:01:55]}
15... Rg8 {[%clk 0:00:19.3]} 16. Bh4 {[%clk 0:01:51]} 16... Bh6+ {[%clk
0:00:16.2]} 17. Kb1 {[%clk 0:01:50.9]} 17... Bg5 {[%clk 0:00:16.4]} 18. f3
{[%clk 0:01:48.8]} 18... Bxh4 {[%clk 0:00:15.5]} 19. Rxh4 {[%clk 0:01:48.4]}
19... exf3 {[%clk 0:00:13.5]} 20. gxf3 {[%clk 0:01:48.7]} 20... Kf7 {[%clk
0:00:10.4]} 21. Re1 {[%clk 0:01:48]} 21... Rae8 {[%clk 0:00:10]} 22. Qd2 {[%clk
0:01:46.1]} 22... Nxf3 {[%clk 0:00:07.5]} 23. Rxe7+ {[%clk 0:01:45.8]} 23...
Rxe7 {[%clk 0:00:08]} 24. Qf2 {[%clk 0:01:34.7]} 24... Nxh4 {[%clk 0:00:05.2]}
25. a4 {[%clk 0:01:33.2]} 25... Nxf5 {[%clk 0:00:04.5]} 26. Qxf5 {[%clk
0:01:34.1]} 26... Rg1+ {[%clk 0:00:04.1]} 27. Ka2 {[%clk 0:01:34.7]} 27... Ree1
{[%clk 0:00:03.6]} 28. Qc8 {[%clk 0:01:33.5]} 28... Ra1+ {[%clk 0:00:03]} 29.
Kb3 {[%clk 0:01:34.1]} 29... d4 {[%clk 0:00:01.3]} 30. Ne2 {[%clk 0:01:34.1]}
30... Rg2 {[%clk 0:00:01.3]} 31. Qxb7+ {[%clk 0:01:34.1]} 31... Ke6 {[%clk
0:00:01]} 32. Nf4+ {[%clk 0:01:34.3]} 1-0

[Event "Early-Titled-Tuesday-Blitz-November-28-2023"]
[Site "Chess.com"]
[Date "2023.11.28"]
[Round "3"]
[White "Arvids_Andrejevs"]
[Black "Timerkhanov"]
[Result "0-1"]
[WhiteElo "2391"]
[BlackElo "2691"]
[TimeControl "180+1"]
[EndTime "8:27:37 PST"]
[Termination "Timerkhanov won by checkmate"]

1. d4 {[%clk 0:02:40.2]} 1... d5 {[%clk 0:02:59.5]} 2. Bf4 {[%clk 0:02:40]} 2...
Nf6 {[%clk 0:02:58.6]} 3. e3 {[%clk 0:02:40.3]} 3... c5 {[%clk 0:02:58.7]} 4.
dxc5 {[%clk 0:02:40]} 4... e6 {[%clk 0:02:58.1]} 5. b4 {[%clk 0:02:39.3]} 5...
a5 {[%clk 0:02:53.2]} 6. c3 {[%clk 0:02:35.6]} 6... axb4 {[%clk 0:02:48]} 7.
cxb4 {[%clk 0:02:34.6]} 7... Nc6 {[%clk 0:02:48.4]} 8. Bb5 {[%clk 0:02:27.9]}
8... Bd7 {[%clk 0:02:47.6]} 9. Qb3 {[%clk 0:02:25.7]} 9... b6 {[%clk 0:02:46.7]}
10. Bxc6 {[%clk 0:02:12.2]} 10... Bxc6 {[%clk 0:02:38.5]} 11. b5 {[%clk
0:02:12.6]} 11... Bd7 {[%clk 0:02:28.4]} 12. c6 {[%clk 0:02:12.1]} 12... Bc8
{[%clk 0:02:28.6]} 13. Nf3 {[%clk 0:01:56.6]} 13... Bd6 {[%clk 0:02:28.9]} 14.
Bxd6 {[%clk 0:01:47.5]} 14... Qxd6 {[%clk 0:02:29.8]} 15. Nc3 {[%clk 0:01:42.3]}
15... e5 {[%clk 0:02:27.7]} 16. O-O {[%clk 0:01:41.5]} 16... Be6 {[%clk
0:02:27]} 17. Ng5 {[%clk 0:01:39.4]} 17... O-O {[%clk 0:02:26]} 18. Nxe6 {[%clk
0:01:39.2]} 18... fxe6 {[%clk 0:02:26.9]} 19. h3 {[%clk 0:01:35]} 19... e4
{[%clk 0:02:26.1]} 20. a4 {[%clk 0:01:29.2]} 20... Rf7 {[%clk 0:02:25.5]} 21.
Ne2 {[%clk 0:01:02.7]} 21... g5 {[%clk 0:02:24.5]} 22. Ng3 {[%clk 0:00:59.6]}
22... h5 {[%clk 0:02:23.5]} 23. Rfd1 {[%clk 0:00:57.2]} 23... h4 {[%clk
0:02:22.1]} 24. Ne2 {[%clk 0:00:56.9]} 24... g4 {[%clk 0:02:22.6]} 25. hxg4
{[%clk 0:00:53]} 25... Nxg4 {[%clk 0:02:22.1]} 26. Nf4 {[%clk 0:00:53]} 26...
Raf8 {[%clk 0:02:06.7]} 27. Qa3 {[%clk 0:00:50.7]} 27... Qe5 {[%clk 0:02:03.8]}
28. g3 {[%clk 0:00:22.8]} 28... hxg3 {[%clk 0:01:57.7]} 29. fxg3 {[%clk
0:00:23.7]} 29... Qh8 {[%clk 0:01:50.4]} 30. Ra2 {[%clk 0:00:20.3]} 30... e5
{[%clk 0:01:47.2]} 31. Qb2 {[%clk 0:00:17]} 31... Nxe3 {[%clk 0:01:30.7]} 32.
Rxd5 {[%clk 0:00:08.9]} 32... Nxd5 {[%clk 0:01:27.1]} 33. Nxd5 {[%clk
0:00:09.8]} 33... Rf1+ {[%clk 0:01:26.7]} 34. Kg2 {[%clk 0:00:10.4]} 34... Qh1#
{[%clk 0:01:26.6]} 0-1

[Event "Early-Titled-Tuesday-Blitz-November-28-2023"]
[Site "Chess.com"]
[Date "2023.11.28"]
[Round "3"]
[White "masterofpuppets2"]
[Black "kingofthenil"]
[Result "0-1"]
[WhiteElo "2502"]
[BlackElo "2696"]
[TimeControl "180+1"]
[EndTime "8:27:39 PST"]
[Termination "kingofthenil won by resignation"]

1. d4 {[%clk 0:03:00.9]} 1... Nf6 {[%clk 0:02:55.7]} 2. c4 {[%clk 0:03:00.8]}
2... e6 {[%clk 0:02:55.9]} 3. Nf3 {[%clk 0:03:00.3]} 3... c5 {[%clk 0:02:55.3]}
4. d5 {[%clk 0:02:59.2]} 4... d6 {[%clk 0:02:56]} 5. Nc3 {[%clk 0:02:51.4]} 5...
exd5 {[%clk 0:02:56.2]} 6. cxd5 {[%clk 0:02:52.3]} 6... g6 {[%clk 0:02:56.4]} 7.
h3 {[%clk 0:02:51.2]} 7... Bg7 {[%clk 0:02:55.8]} 8. e4 {[%clk 0:02:51.9]} 8...
a6 {[%clk 0:02:54.6]} 9. a4 {[%clk 0:02:50.9]} 9... Nbd7 {[%clk 0:02:54.9]} 10.
Be3 {[%clk 0:02:49.1]} 10... O-O {[%clk 0:02:44.8]} 11. Bd3 {[%clk 0:02:48.1]}
11... Rb8 {[%clk 0:02:43]} 12. O-O {[%clk 0:02:46.5]} 12... b5 {[%clk
0:02:33.9]} 13. axb5 {[%clk 0:02:43.4]} 13... axb5 {[%clk 0:02:34.8]} 14. Bxb5
{[%clk 0:02:33.5]} 14... Nxe4 {[%clk 0:02:34.9]} 15. Nxe4 {[%clk 0:02:33.9]}
15... Rxb5 {[%clk 0:02:34.9]} 16. Nxd6 {[%clk 0:02:34.4]} 16... Rxb2 {[%clk
0:02:35.1]} 17. Nc4 {[%clk 0:02:31.2]} 17... Rb4 {[%clk 0:02:33.9]} 18. Ra4
{[%clk 0:02:21.5]} 18... Bb7 {[%clk 0:02:23.7]} 19. Rxb4 {[%clk 0:02:02.8]}
19... cxb4 {[%clk 0:02:23.6]} 20. Nd6 {[%clk 0:01:59.2]} 20... Ba8 {[%clk
0:01:55.1]} 21. Qb3 {[%clk 0:01:51.2]} 21... Nf6 {[%clk 0:01:51.7]} 22. Qxb4
{[%clk 0:01:38.4]} 22... Nxd5 {[%clk 0:01:50.8]} 23. Qa3 {[%clk 0:01:38.3]}
23... Nxe3 {[%clk 0:01:45.1]} 24. fxe3 {[%clk 0:01:39.2]} 24... Qe7 {[%clk
0:01:39.3]} 25. Nb5 {[%clk 0:01:26.1]} 25... Qxa3 {[%clk 0:01:19.7]} 26. Nxa3
{[%clk 0:01:27]} 26... Re8 {[%clk 0:01:16.8]} 27. Kf2 {[%clk 0:01:24.8]} 27...
h6 {[%clk 0:01:11]} 28. Rd1 {[%clk 0:01:14]} 28... Bc6 {[%clk 0:01:03.6]} 29.
Nc4 {[%clk 0:01:11.4]} 29... Ra8 {[%clk 0:00:59.6]} 30. Nce5 {[%clk 0:01:06.3]}
30... Ra2+ {[%clk 0:00:56.5]} 31. Kg3 {[%clk 0:01:04.6]} 31... Bxe5+ {[%clk
0:00:54.9]} 32. Nxe5 {[%clk 0:01:03.7]} 32... Rxg2+ {[%clk 0:00:54.9]} 33. Kf4
{[%clk 0:01:03.2]} 33... Bb7 {[%clk 0:00:39.3]} 34. Rd8+ {[%clk 0:01:00.9]}
34... Kg7 {[%clk 0:00:39.3]} 35. Rd7 {[%clk 0:01:01.5]} 35... g5+ {[%clk
0:00:39.6]} 36. Kf5 {[%clk 0:01:00.6]} 36... Bc8 {[%clk 0:00:39.8]} 0-1

[Event "Early-Titled-Tuesday-Blitz-November-28-2023"]
[Site "Chess.com"]
[Date "2023.11.28"]
[Round "3"]
[White "Agibileg"]
[Black "juniortay"]
[Result "1-0"]
[WhiteElo "2650"]
[BlackElo "2489"]
[TimeControl "180+1"]
[EndTime "8:27:43 PST"]
[Termination "Agibileg won by resignation"]

1. d4 {[%clk 0:03:00]} 1... d5 {[%clk 0:02:59]} 2. Nf3 {[%clk 0:02:50.3]} 2...
c5 {[%clk 0:02:58.8]} 3. Bf4 {[%clk 0:02:45.7]} 3... Nc6 {[%clk 0:02:58.1]} 4.
e3 {[%clk 0:02:45.7]} 4... Bg4 {[%clk 0:02:56.1]} 5. c3 {[%clk 0:02:44]} 5... e6
{[%clk 0:02:55.1]} 6. Nbd2 {[%clk 0:02:42.4]} 6... Bd6 {[%clk 0:02:53.4]} 7.
Bxd6 {[%clk 0:02:40.1]} 7... Qxd6 {[%clk 0:02:53.5]} 8. h3 {[%clk 0:02:41]} 8...
Bxf3 {[%clk 0:02:52.5]} 9. Nxf3 {[%clk 0:02:41]} 9... Nf6 {[%clk 0:02:53.1]} 10.
Bd3 {[%clk 0:02:40.9]} 10... O-O {[%clk 0:02:53.1]} 11. O-O {[%clk 0:02:41]}
11... cxd4 {[%clk 0:02:45.3]} 12. exd4 {[%clk 0:02:40]} 12... Rab8 {[%clk
0:02:45.7]} 13. a4 {[%clk 0:02:39.1]} 13... a6 {[%clk 0:02:44.5]} 14. Re1 {[%clk
0:02:38.6]} 14... b5 {[%clk 0:02:43.8]} 15. axb5 {[%clk 0:02:39.5]} 15... axb5
{[%clk 0:02:44.5]} 16. b4 {[%clk 0:02:40]} 16... Rfe8 {[%clk 0:02:44.5]} 17. Ne5
{[%clk 0:02:39]} 17... Qc7 {[%clk 0:02:29.5]} 18. Qe2 {[%clk 0:02:23.3]} 18...
Nxe5 {[%clk 0:02:26.2]} 19. dxe5 {[%clk 0:02:21]} 19... Nd7 {[%clk 0:02:24.1]}
20. Bxb5 {[%clk 0:02:16.2]} 20... Rec8 {[%clk 0:02:24.3]} 21. Ba6 {[%clk
0:01:55.9]} 21... Rd8 {[%clk 0:02:23]} 22. Ra3 {[%clk 0:01:54.2]} 22... d4
{[%clk 0:02:19.8]} 23. cxd4 {[%clk 0:01:40.1]} 23... Rxb4 {[%clk 0:02:18.8]} 24.
d5 {[%clk 0:01:40.1]} 24... Nc5 {[%clk 0:01:46.7]} 25. d6 {[%clk 0:01:35.6]}
25... Qb6 {[%clk 0:01:47.1]} 26. Bc4 {[%clk 0:01:30.6]} 26... Rb2 {[%clk
0:01:38.3]} 27. Qe3 {[%clk 0:01:26.8]} 27... Qb4 {[%clk 0:01:36]} 28. Qc3 {[%clk
0:01:18.9]} 28... Qb6 {[%clk 0:01:32.1]} 29. Qa5 {[%clk 0:01:14.2]} 29... Qb8
{[%clk 0:01:27.4]} 30. Qxc5 {[%clk 0:01:10.8]} 30... Rc8 {[%clk 0:01:24.5]} 31.
Qd4 {[%clk 0:01:03.8]} 31... Qb4 {[%clk 0:01:24.7]} 32. Rc3 {[%clk 0:00:54.9]}
32... Rc2 {[%clk 0:01:14.3]} 33. Rxc2 {[%clk 0:00:48.4]} 33... Qxe1+ {[%clk
0:01:13.8]} 34. Kh2 {[%clk 0:00:48.1]} 34... Rd8 {[%clk 0:01:06.2]} 35. Bd3
{[%clk 0:00:42.9]} 35... g6 {[%clk 0:01:06]} 36. d7 {[%clk 0:00:42.2]} 1-0

[Event "Early-Titled-Tuesday-Blitz-November-28-2023"]
[Site "Chess.com"]
[Date "2023.11.28"]
[Round "3"]
[White "jcmesafischer"]
[Black "StellarChessPro"]
[Result "1-0"]
[WhiteElo "2328"]
[BlackElo "2536"]
[TimeControl "180+1"]
[EndTime "8:27:45 PST"]
[Termination "jcmesafischer won by resignation"]

1. e4 {[%clk 0:02:57.6]} 1... g6 {[%clk 0:02:59.9]} 2. d4 {[%clk 0:02:57.4]}
2... Bg7 {[%clk 0:03:00.2]} 3. Bc4 {[%clk 0:02:57.6]} 3... d6 {[%clk 0:03:00.1]}
4. Nf3 {[%clk 0:02:57.9]} 4... e6 {[%clk 0:02:58.4]} 5. Qe2 {[%clk 0:02:57.7]}
5... Ne7 {[%clk 0:02:58.9]} 6. c3 {[%clk 0:02:57.6]} 6... a6 {[%clk 0:02:59.1]}
7. O-O {[%clk 0:02:57.4]} 7... O-O {[%clk 0:02:59.1]} 8. Nbd2 {[%clk 0:02:57.5]}
8... Nd7 {[%clk 0:02:59.6]} 9. Re1 {[%clk 0:02:57]} 9... e5 {[%clk 0:03:00.2]}
10. Nf1 {[%clk 0:02:56.2]} 10... h6 {[%clk 0:03:00.1]} 11. a4 {[%clk 0:02:54.1]}
11... Kh7 {[%clk 0:02:57.5]} 12. dxe5 {[%clk 0:02:52.7]} 12... Nxe5 {[%clk
0:02:55.8]} 13. Nxe5 {[%clk 0:02:52.5]} 13... dxe5 {[%clk 0:02:56.6]} 14. Be3
{[%clk 0:02:50.5]} 14... b6 {[%clk 0:02:49]} 15. Rad1 {[%clk 0:02:48.9]} 15...
Qe8 {[%clk 0:02:49]} 16. Bb3 {[%clk 0:02:47]} 16... Bd7 {[%clk 0:02:46.1]} 17.
a5 {[%clk 0:02:45.1]} 17... bxa5 {[%clk 0:02:42.2]} 18. Bc5 {[%clk 0:02:42]}
18... Rb8 {[%clk 0:02:37.3]} 19. Qc2 {[%clk 0:02:40.6]} 19... Rxb3 {[%clk
0:02:30.8]} 20. Qxb3 {[%clk 0:02:38.9]} 20... Ba4 {[%clk 0:02:31.4]} 21. Qa3
{[%clk 0:02:37.8]} 21... Bxd1 {[%clk 0:02:29.7]} 22. Bxe7 {[%clk 0:02:37.6]}
22... Ba4 {[%clk 0:02:19.3]} 23. Bxf8 {[%clk 0:02:31.1]} 23... Bxf8 {[%clk
0:02:19]} 24. Qa2 {[%clk 0:02:31.4]} 24... Bd6 {[%clk 0:02:14]} 25. Ra1 {[%clk
0:02:30.1]} 25... Bb5 {[%clk 0:02:13.3]} 26. Qxa5 {[%clk 0:02:27.8]} 26... Qc6
{[%clk 0:02:09.2]} 27. Ng3 {[%clk 0:02:08]} 27... h5 {[%clk 0:02:07.2]} 28. b3
{[%clk 0:01:55.2]} 28... h4 {[%clk 0:01:58.6]} 29. c4 {[%clk 0:01:52.8]} 29...
hxg3 {[%clk 0:01:58.8]} 30. hxg3 {[%clk 0:01:48.5]} 30... Bxc4 {[%clk
0:01:49.9]} 31. bxc4 {[%clk 0:01:47.9]} 31... Qxc4 {[%clk 0:01:47.5]} 32. Qd5
{[%clk 0:01:47.2]} 32... Qxd5 {[%clk 0:01:43.4]} 33. exd5 {[%clk 0:01:48.1]}
33... f5 {[%clk 0:01:41.9]} 34. Rxa6 {[%clk 0:01:47.9]} 34... e4 {[%clk
0:01:42]} 35. g4 {[%clk 0:01:46.7]} 35... fxg4 {[%clk 0:01:40.1]} 36. Ra4 {[%clk
0:01:46.2]} 36... e3 {[%clk 0:01:34]} 37. fxe3 {[%clk 0:01:40.8]} 37... g3
{[%clk 0:01:33.7]} 38. Kf1 {[%clk 0:01:40.5]} 38... Kg7 {[%clk 0:01:33.8]} 39.
Ke2 {[%clk 0:01:40.9]} 39... Kf6 {[%clk 0:01:34.5]} 40. Re4 {[%clk 0:01:41]}
40... Kf5 {[%clk 0:01:33.9]} 41. Re6 {[%clk 0:01:38.9]} 41... g5 {[%clk
0:01:34]} 42. Kf3 {[%clk 0:01:32.4]} 42... g4+ {[%clk 0:01:34.2]} 43. Ke2 {[%clk
0:01:32.8]} 43... Be5 {[%clk 0:01:33.1]} 44. Kd3 {[%clk 0:01:31]} 44... Bd6
{[%clk 0:01:31.4]} 45. e4+ {[%clk 0:01:30.4]} 45... Kf4 {[%clk 0:01:31.3]} 46.
Kd4 {[%clk 0:01:30.1]} 46... Ba3 {[%clk 0:01:30.2]} 47. Rf6+ {[%clk 0:01:28.8]}
47... Kg5 {[%clk 0:01:30.4]} 48. Rf5+ {[%clk 0:01:29.7]} 48... Kg6 {[%clk
0:01:30.7]} 49. Rf1 {[%clk 0:01:26.7]} 49... Bb2+ {[%clk 0:01:27.9]} 50. Kc5
{[%clk 0:01:26.5]} 50... Be5 {[%clk 0:01:24.8]} 51. Kc6 {[%clk 0:01:26.2]} 51...
Kg7 {[%clk 0:01:21.5]} 52. Kd7 {[%clk 0:01:21.8]} 52... Kg6 {[%clk 0:01:20.8]}
53. Ke6 {[%clk 0:01:16.7]} 53... Bd4 {[%clk 0:01:18.5]} 54. e5 {[%clk
0:01:14.2]} 54... Bf2 {[%clk 0:01:17.2]} 55. d6 {[%clk 0:01:09.3]} 55... cxd6
{[%clk 0:01:11.9]} 56. exd6 {[%clk 0:01:10.2]} 56... Kg5 {[%clk 0:01:11.7]} 57.
Rb1 {[%clk 0:01:04.3]} 1-0